Workbook

Sheet 1. részajánlati kör
B2: mennyiség (m2) | C2: papírminőség | D2: méret | E2: szín | F2: kötészet | K2: Nyomdai kivitelezés díja (nettó Ft/m2) | L2: Nyomdai előkészítés díja (ppt vagy egyéb nem nyomdai kompatibilis grafikai anyag esetén) (nettó Ft) | M2: Egyszerű gafikai tervezés, szerkesztés díja (pályázati arculat alapján 1 komplett tervvariáció) (nettó Ft) | N2: Grafikai tervezés, szerkesztés díja (egyéb arculat alapján 3 komplett tervvariáció) (nettó Ft)
A3: Plakát (1) | B3: 1-től 5-ig | C3: min. 170 g citylight | D3: A0 | E3: 4+0 | F3: vágva | K3: 9250 | L3: 4000 | M3: 8000 | N3: 10000
D4: B1 | K4: 9250
D5: A1 | K5: 9250
D6: A2 | K6: 9250
B7: 6-tól 10-ig | C7: min. 170 g citylight | D7: A0 | E7: 4+0 | F7: vágva | K7: 8500
D8: B1 | K8: 8500
D9: A1 | K9: 8500
D10: A2 | K10: 8500
B11: 10 fölött | C11: min. 170 g citylight | D11: A0 | E11: 4+0 | F11: vágva | K11: 8500
D12: B1 | K12: 8000
D13: A1 | K13: 8000
D14: A2 | K14: 8000
B15: 1-től 5-ig | C15: canvas | D15: A0 | E15: 4+0 | F15: vágva | K15: 13000
D16: B1 | K16: 13000
D17: A1 | K17: 13000
D18: A2 | K18: 13000
B19: 6-tól 10-ig | C19: canvas | D19: A0 | E19: 4+0 | F19: vágva | K19: 11000
D20: B1 | K20: 11000
D21: A1 | K21: 11000
D22: A2 | K22: 11000
K23: =SUM(K3:K22) -> 199500 | L23: =SUM(L3) -> 4000 | M23: =SUM(M3) -> 8000 | N23: =SUM(N3) -> 10000
B24: mennyiség (db) | C24: papírminőség | D24: méret | E24: szín | F24: kötészet | K24: Nyomdai kivitelezés díja (nettó Ft/db) | L24: Nyomdai előkészítés díja (ppt vagy egyéb nem nyomdai kompatibilis grafikai anyag esetén) (nettó Ft) | M24: Egyszerű gafikai tervezés, szerkesztés díja (pályázati arculat alapján 1 komplett tervvariáció) (nettó Ft) | N24: Grafikai tervezés, szerkesztés díja (egyéb arculat alapján 3 komplett tervvariáció) (nettó Ft)
A25: Plakát (2) | B25: 1-50 | C25: 150 g fényes | D25: A2 | E25: 4+0 | F25: vágva | K25: 1301 | L25: 4000 | M25: 8000 | N25: 10000
D26: A3 | K26: 403
B27: 100-300 | D27: A2 | E27: 4+0 | F27: vágva | K27: 240
D28: A3 | K28: 123
B29: 301-600 | D29: A2 | E29: 4+0 | F29: vágva | K29: 107
D30: A3 | K30: 70
K31: =SUM(K25:K30) -> 2244 | L31: =SUM(L25) -> 4000 | M31: =SUM(M25) -> 8000 | N31: =SUM(N25) -> 10000
B32: mennyiség (db) | C32: papírminőség | D32: méret | E32: szín | F32: kötészet | K32: Nyomdai kivitelezés díja (nettó Ft/db) | L32: Nyomdai előkészítés díja (ppt vagy egyéb nem nyomdai kompatibilis grafikai anyag esetén) (nettó Ft) | M32: Egyszerű gafikai tervezés, szerkesztés díja (1 komplett tervvariáció) (nettó Ft)
A33: Meghívó | B33: 50-től 150-ig | C33: 300 g/m2 műnyomó | D33: A5 | E33: 4+4 | F33: biegelve, hajtva | K33: 276 | L33: 4000 | M33: 8000
D35: 21*21 cm | E35: 4+4 | F35: biegelve, hajtva | K35: 308
D37: A/4 | E37: 4+4 | F37: biegelve, hajtva, matt fólia 2 oldalon | K37: 391
B39: 151-től 300-ig | C39: 300 g/m2 műnyomó | D39: A5 | E39: 4+4 | F39: biegelve, hajtva | K39: 120
D41: 21*21 cm | E41: 4+4 | F41: biegelve, hajtva | K41: 133
D43: A/4 | E43: 4+4 | F43: biegelve, hajtva, matt fólia 2 oldalon | K43: 194
K45: =SUM(K33:K44) -> 1422 | L45: =SUM(L33) -> 4000 | M45: =SUM(M33) -> 8000
B46: mennyiség (db) | C46: papírminőség | D46: méret | E46: szín | F46: terjedelem | G46: kötészet | K46: Nyomdai kivitelezés díja (nettó Ft/össz. db) | L46: Nyomdai előkészítés díja (nem nyomdai kompatibilis grafikai anyag esetén) (nettó Ft) | M46: Egyszerű grafikai tervezés (borító + 1 oldalpár) pályázati arculat alapján 1 komplett tervvariáció díja (nettó Ft) | N46: Grafikai tervezés (borító + 1 oldalpár) egyéb arculat alapján 3 komplett tervvariáció díja (nettó Ft) | O46: Tördelés-szerkesztés egyszerű 2 elektronikus korrektúraforduló lebonyolításával (nettó Ft/össz. oldal) | P46: Tördelés-szerkesztés összetett 2 elektronikus korrektúraforduló lebonyolításával (nettó Ft/össz. oldal)
A47: Kiadvány (1) | B47: 100 | C47: borító: 250 g műnyomó belív: 90 g műnyomó | D47: A/5 | E47: bor: 4+4 belív: 4+4 | F47: 4 old | G47: hajtva | K47: 17500 | L47: 6000 | M47: 12000 | N47: 20000 | O47: 514.5 | P47: 540.225
F48: bor+8 old | G48: irkafűzve | K48: 37700 | O48: 4630.5 | P48: 4862.025
F49: bor+16 old | G49: irkafűzve | K49: 44700 | O49: 6174 | P49: 6482.7
F50: bor+24 old | G50: irkafűzve | K50: 53300 | O50: 12862.5 | P50: 13505.625
F51: bor+32 old | G51: irkafűzve | K51: 61900 | O51: 16978.5 | P51: 17827.425
F52: bor+36 old | G52: irkafűzve | K52: 66200 | O52: 19036.5 | P52: 19988.325
F53: bor+44 old | G53: irkafűzve | K53: 74800 | O53: 23152.5 | P53: 24310.125
F54: bor+52 old | G54: irkafűzve | K54: 83400 | O54: 27268.5 | P54: 28631.925
F55: bor+60 old | G55: irkafűzve | K55: 91900 | O55: 31384.5 | P55: 32953.725
D56: VB5 mérettől függetlenül | E56: bor: 4+4 belív: 4+4 | F56: 4 old | G56: hajtva | K56: 15066 | O56: 514.5 | P56: 540.225
F57: bor+8 old | G57: irkafűzve | K57: 36531 | O57: 4630.5 | P57: 4862.025
F58: bor+16 old | G58: irkafűzve | K58: 46251 | O58: 6174 | P58: 6482.7
F59: bor+24 old | G59: irkafűzve | K59: 55890 | O59: 12862.5 | P59: 13505.625
F60: bor+32 old | G60: irkafűzve | K60: 65610 | O60: 16978.5 | P60: 17827.425
F61: bor+36 old | G61: irkafűzve | K61: 70470 | O61: 19036.5 | P61: 19988.325
F62: bor+44 old | G62: irkafűzve | K62: 80190 | O62: 23152.5 | P62: 24310.125
F63: bor+52 old | G63: irkafűzve | K63: 89829 | O63: 27268.5 | P63: 28631.925
F64: bor+60 old | G64: irkafűzve | K64: 99549 | O64: 31384.5 | P64: 32953.725
D65: A/4 | E65: bor: 4+4 belív: 4+4 | F65: 4 old | G65: hajtva | K65: 15066 | O65: 514.5 | P65: 540.225
F66: bor+8 old | G66: irkafűzve | K66: 40176 | O66: 4630.5 | P66: 4862.025
F67: bor+16 old | G67: irkafűzve | K67: 54027 | O67: 6174 | P67: 6482.7
F68: bor+32 old | G68: irkafűzve | K68: 81891 | O68: 16978.5 | P68: 17827.425
F69: bor+44 old | G69: irkafűzve | K69: 102708 | O69: 23152.5 | P69: 24310.125
B70: 200 | C70: borító: 250 g műnyomó belív: 90 g műnyomó | D70: A/5 | E70: bor: 4+4 belív: 4+4 | F70: 4 old | G70: hajtva | K70: 20200 | O70: 514.5 | P70: 540.225
F71: bor+8 old | G71: irkafűzve | K71: 48000 | O71: 4630.5 | P71: 4862.025
F72: bor+16 old | G72: irkafűzve | K72: 64000 | O72: 6174 | P72: 6482.7
F73: bor+24 old | G73: irkafűzve | K73: 80000 | O73: 12862.5 | P73: 13505.625
F74: bor+32 old | G74: irkafűzve | K74: 96000 | O74: 16978.5 | P74: 17827.425
F75: bor+36 old | G75: irkafűzve | K75: 104200 | O75: 19036.5 | P75: 19988.325
F76: bor+44 old | G76: irkafűzve | K76: 120200 | O76: 23152.5 | P76: 24310.125
F77: bor+52 old | G77: irkafűzve | K77: 136200 | O77: 27268.5 | P77: 28631.925
F78: bor+60 old | G78: irkafűzve | K78: 152400 | O78: 31384.5 | P78: 32953.725
D79: VB5 mérettől függetlenül | E79: bor: 4+4 belív: 4+4 | F79: 4 old | G79: hajtva | K79: 22140 | O79: 514.5 | P79: 540.225
F80: bor+8 old | G80: irkafűzve | K80: 56880 | O80: 4630.5 | P80: 4862.025
F81: bor+16 old | G81: irkafűzve | K81: 73440 | O81: 6174 | P81: 6482.7
F82: bor+24 old | G82: irkafűzve | K82: 97200 | O82: 12862.5 | P82: 13505.625
F83: bor+32 old | G83: irkafűzve | K83: 108900 | O83: 16978.5 | P83: 17827.425
F84: bor+36 old | G84: irkafűzve | K84: 121860 | O84: 19036.5 | P84: 19988.325
F85: bor+44 old | G85: irkafűzve | K85: 144540 | O85: 23152.5 | P85: 24310.125
F86: bor+52 old | G86: irkafűzve | K86: 157500 | O86: 27268.5 | P86: 28631.925
F87: bor+60 old | G87: irkafűzve | K87: 180360 | O87: 31384.5 | P87: 32953.725
D88: A/4 | E88: bor: 4+4 belív: 4+4 | F88: 4 old | G88: hajtva | K88: 22140 | O88: 514.5 | P88: 540.225
F89: bor+8 old | G89: irkafűzve | K89: 64800 | O89: 4630.5 | P89: 4862.025
F90: bor+16 old | G90: irkafűzve | K90: 94500 | O90: 6174 | P90: 6482.7
F91: bor+32 old | G91: irkafűzve | K91: 152640 | O91: 16978.5 | P91: 17827.425
F92: bor+44 old | G92: irkafűzve | K92: 196200 | O92: 23152.5 | P92: 24310.125
B93: 500 | C93: borító: 250 g műnyomó belív: 90 g műnyomó | D93: A/5 | E93: bor: 4+4 belív: 1+1 fekete | F93: 4 old | G93: hajtva | K93: 16800 | O93: 490 | P93: 525
F94: bor+8 old | G94: irkafűzve | K94: 49200 | O94: 4410 | P94: 4725
F95: bor+16 old | G95: irkafűzve | K95: 57200 | O95: 5880 | P95: 6300
F96: bor+24 old | G96: irkafűzve | K96: 75200 | O96: 12250 | P96: 13125
F97: bor+32 old | G97: irkafűzve | K97: 75600 | O97: 16170 | P97: 17325
F98: bor+36 old | G98: irkafűzve | K98: 88000 | O98: 18130 | P98: 19425
F99: bor+44 old | G99: irkafűzve | K99: 98800 | O99: 22050 | P99: 23625
F100: bor+52 old | G100: irkafűzve | K100: 108000 | O100: 25970 | P100: 27825
F101: bor+60 old | G101: irkafűzve | K101: 119200 | O101: 29890 | P101: 32025
E102: bor: 4+4 belív: 4+4 | F102: 4 old | G102: hajtva | K102: 30000 | O102: 514.5 | P102: 540.225
F103: bor+8 old | G103: irkafűzve | K103: 76000 | O103: 4630.5 | P103: 4862.025
F104: bor+16 old | G104: irkafűzve | K104: 90500 | O104: 6174 | P104: 6482.7
F105: bor+24 old | G105: irkafűzve | K105: 123000 | O105: 12862.5 | P105: 13505.625
F106: bor+32 old | G106: irkafűzve | K106: 134000 | O106: 16978.5 | P106: 17827.425
F107: bor+36 old | G107: irkafűzve | K107: 157000 | O107: 19036.5 | P107: 19988.325
F108: bor+44 old | G108: irkafűzve | K108: 181500 | O108: 23152.5 | P108: 24310.125
F109: bor+52 old | G109: irkafűzve | K109: 200500 | O109: 27268.5 | P109: 28631.925
F110: bor+60 old | G110: irkafűzve | K110: 225000 | O110: 31384.5 | P110: 32953.725
D111: VB5 mérettől függetlenül | E111: bor: 4+4 belív: 1+1 fekete | F111: 4 old | G111: hajtva | K111: 19200 | O111: 490 | P111: 525
F112: bor+8 old | G112: irkafűzve | K112: 53200 | O112: 4410 | P112: 4725
F113: bor+16 old | G113: irkafűzve | K113: 62400 | O113: 5880 | P113: 6300
F114: bor+24 old | G114: irkafűzve | K114: 78400 | O114: 12250 | P114: 13125
F115: bor+32 old | G115: irkafűzve | K115: 84400 | O115: 16170 | P115: 17325
F116: bor+36 old | G116: irkafűzve | K116: 97200 | O116: 18130 | P116: 19425
F117: bor+44 old | G117: irkafűzve | K117: 106000 | O117: 22050 | P117: 23625
F118: bor+52 old | G118: irkafűzve | K118: 118800 | O118: 25970 | P118: 27825
F119: bor+60 old | G119: irkafűzve | K119: 131600 | O119: 29890 | P119: 32025
E120: bor: 4+4 belív: 4+4 | F120: 4 old | G120: hajtva | K120: 29250 | O120: 514.5 | P120: 540.225
F121: bor+8 old | G121: irkafűzve | K121: 73350 | O121: 4630.5 | P121: 4862.025
F122: bor+16 old | G122: irkafűzve | K122: 87300 | O122: 6174 | P122: 6482.7
F123: bor+24 old | G123: irkafűzve | K123: 120600 | O123: 12862.5 | P123: 13505.625
F124: bor+32 old | G124: irkafűzve | K124: 131400 | O124: 16978.5 | P124: 17827.425
F125: bor+36 old | G125: irkafűzve | K125: 153450 | O125: 19036.5 | P125: 19988.325
F126: bor+44 old | G126: irkafűzve | K126: 174150 | O126: 23152.5 | P126: 24310.125
F127: bor+52 old | G127: irkafűzve | K127: 195750 | O127: 27268.5 | P127: 28631.925
F128: bor+60 old | G128: irkafűzve | K128: 220500 | O128: 31384.5 | P128: 32953.725
D129: A/4 | E129: bor: 4+4 belív: 1+1 fekete | F129: 4 old | G129: hajtva | K129: 20800 | O129: 490 | P129: 525
F130: bor+8 old | G130: irkafűzve | K130: 69200 | O130: 4410 | P130: 4725
F131: bor+16 old | G131: irkafűzve | K131: 91200 | O131: 5880 | P131: 6300
F132: bor+32 old | G132: irkafűzve | K132: 135600 | O132: 16170 | P132: 17325
F133: bor+44 old | G133: irkafűzve | K133: 175600 | O133: 22050 | P133: 23625
E134: bor: 4+4 belív: 4+4 | F134: 4 old | G134: hajtva | K134: 36900 | O134: 514.5 | P134: 540.225
F135: bor+8 old | G135: irkafűzve | K135: 94500 | O135: 4630.5 | P135: 4862.025
F136: bor+16 old | G136: irkafűzve | K136: 136350 | O136: 6174 | P136: 6482.7
F137: bor+32 old | G137: irkafűzve | K137: 220050 | O137: 16978.5 | P137: 17827.425
F138: bor+44 old | G138: irkafűzve | K138: 291150 | O138: 23152.5 | P138: 24310.125
B139: 1000 | C139: borító: 250 g műnyomó belív: 90 g műnyomó | D139: A/5 | E139: bor: 4+4 belív: 4+4 | F139: 4 old | G139: hajtva | K139: 36600 | O139: 514.5 | P139: 540.225
F140: bor+8 old | G140: irkafűzve | K140: 90000 | O140: 4630.5 | P140: 4862.025
F141: bor+16 old | G141: irkafűzve | K141: 110600 | O141: 6174 | P141: 6482.7
F142: bor+24 old | G142: irkafűzve | K142: 149300 | O142: 12862.5 | P142: 13505.625
F143: bor+32 old | G143: irkafűzve | K143: 166900 | O143: 16978.5 | P143: 17827.425
F144: bor+36 old | G144: irkafűzve | K144: 193800 | O144: 19036.5 | P144: 19988.325
F145: bor+44 old | G145: irkafűzve | K145: 227500 | O145: 23152.5 | P145: 24310.125
F146: bor+52 old | G146: irkafűzve | K146: 252200 | O146: 27268.5 | P146: 28631.925
F147: bor+60 old | G147: irkafűzve | K147: 282500 | O147: 31384.5 | P147: 32953.725
D148: VB5 mérettől függetlenül | E148: bor: 4+4 belív: 4+4 | F148: 4 old | G148: hajtva | K148: 28240 | O148: 514.5 | P148: 540.225
F149: bor+8 old | G149: irkafűzve | K149: 78640 | O149: 4630.5 | P149: 4862.025
F150: bor+16 old | G150: irkafűzve | K150: 96960 | O150: 6174 | P150: 6482.7
F151: bor+24 old | G151: irkafűzve | K151: 130320 | O151: 12862.5 | P151: 13505.625
F152: bor+32 old | G152: irkafűzve | K152: 148400 | O152: 16978.5 | P152: 17827.425
F153: bor+36 old | G153: irkafűzve | K153: 171120 | O153: 19036.5 | P153: 19988.325
F154: bor+44 old | G154: irkafűzve | K154: 199760 | O154: 23152.5 | P154: 24310.125
F155: bor+52 old | G155: irkafűzve | K155: 222560 | O155: 27268.5 | P155: 28631.925
F156: bor+60 old | G156: irkafűzve | K156: 251120 | O156: 31384.5 | P156: 32953.725
D157: A/4 | E157: bor: 4+4 belív: 4+4 | F157: 4 old | G157: hajtva | K157: 36080 | O157: 514.5 | P157: 540.225
F158: bor+8 old | G158: irkafűzve | K158: 106720 | O158: 4630.5 | P158: 4862.025
F159: bor+16 old | G159: irkafűzve | K159: 151840 | O159: 6174 | P159: 6482.7
F160: bor+32 old | G160: irkafűzve | K160: 242400 | O160: 16978.5 | P160: 17827.425
F161: bor+44 old | G161: irkafűzve | K161: 320640 | O161: 23152.5 | P161: 24310.125
B162: 2000 | C162: borító: 250 g műnyomó belív: 90 g műnyomó | D162: A/5 | E162: bor: 4+4 belív: 4+4 | F162: 4 old | G162: hajtva | K162: 45000 | O162: 514.5 | P162: 540.225
F163: bor+8 old | G163: irkafűzve | K163: 117400 | O163: 4630.5 | P163: 4862.025
F164: bor+16 old | G164: irkafűzve | K164: 152000 | O164: 6174 | P164: 6482.7
F165: bor+24 old | G165: irkafűzve | K165: 206000 | O165: 12862.5 | P165: 13505.625
F166: bor+32 old | G166: irkafűzve | K166: 225400 | O166: 16978.5 | P166: 17827.425
F167: bor+36 old | G167: irkafűzve | K167: 259800 | O167: 19036.5 | P167: 19988.325
F168: bor+44 old | G168: irkafűzve | K168: 313800 | O168: 23152.5 | P168: 24310.125
F169: bor+52 old | G169: irkafűzve | K169: 349800 | O169: 27268.5 | P169: 28631.925
F170: bor+60 old | G170: irkafűzve | K170: 387200 | O170: 31384.5 | P170: 32953.725
D171: VB5 mérettől függetlenül | E171: bor: 4+4 belív: 4+4 | F171: 4 old | G171: hajtva | K171: 37280 | O171: 514.5 | P171: 540.225
F172: bor+8 old | G172: irkafűzve | K172: 107040 | O172: 4630.5 | P172: 4862.025
F173: bor+16 old | G173: irkafűzve | K173: 138080 | O173: 6174 | P173: 6482.7
F174: bor+24 old | G174: irkafűzve | K174: 185440 | O174: 12862.5 | P174: 13505.625
F175: bor+32 old | G175: irkafűzve | K175: 214400 | O175: 16978.5 | P175: 17827.425
F176: bor+36 old | G176: irkafűzve | K176: 244000 | O176: 19036.5 | P176: 19988.325
F177: bor+44 old | G177: irkafűzve | K177: 291200 | O177: 23152.5 | P177: 24310.125
F178: bor+52 old | G178: irkafűzve | K178: 323040 | O178: 27268.5 | P178: 28631.925
F179: bor+60 old | G179: irkafűzve | K179: 370240 | O179: 31384.5 | P179: 32953.725
D180: A/4 | E180: bor: 4+4 belív: 4+4 | F180: 4 old | G180: hajtva | K180: 45920 | O180: 514.5 | P180: 540.225
F181: bor+8 old | G181: irkafűzve | K181: 154720 | O181: 4630.5 | P181: 4862.025
F182: bor+16 old | G182: irkafűzve | K182: 209920 | O182: 6174 | P182: 6482.7
F183: bor+32 old | G183: irkafűzve | K183: 329920 | O183: 16978.5 | P183: 17827.425
F184: bor+44 old | G184: irkafűzve | K184: 440320 | O184: 23152.5 | P184: 24310.125
K185: =SUM(K47:K184) -> 17654874 | L185: =SUM(L47) -> 6000 | M185: =SUM(M47) -> 12000 | N185: =N47 -> 20000 | O185: =SUM(O47:O184) -> 1996750 | P185: =SUM(P47:P184) -> 2103433.5
B186: mennyiség (db) | C186: papírminőség | D186: méret | E186: szín | F186: terjedelem | G186: konfekcionálás | H186: kötészet | K186: Nyomdai kivitelezés díja (nettó Ft/össz. db) | L186: Nyomdai előkészítés díja (nem nyomdai kompatibilis grafikai anyag esetén) (nettó Ft) | M186: Egyszerű grafikai tervezés (borító + 1 oldalpár) pályázati arculat alapján 1 komplett tervvariáció díja (nettó Ft) | N186: Grafikai tervezés (borító + 1 oldalpár) egyéb arculat alapján 3 komplett tervvariáció díja (nettó Ft) | O186: Tördelés-szerkesztés egyszerű 2 elektronikus korrektúraforduló lebonyolításával (nettó Ft/össz. oldal) | P186: Tördelés-szerkesztés összetett 2 elektronikus korrektúraforduló lebonyolításával (nettó Ft/össz. oldal)
A187: Kiadvány (2) | B187: 100 | C187: Borító 300 g/m2 műnyomó Belív 80 g/m2 ofszet | D187: A/5 | E187: Borító 4+4 Belív 1+1 (fekete) | F187: Belív 72 oldal Borító 4 oldal | G187: borító matt fóliázva | H187: ragasztókötött | K187: 58700 | L187: 6000 | M187: 12000 | N187: 20000 | O187: 21900 | P187: 21900
F188: Belív 96 oldal Borító 4 oldal | K188: 64200 | O188: 29100 | P188: 29100
F189: Belív 128 oldal Borító 4 oldal | K189: 70700 | O189: 38700 | P189: 38700
F190: Belív 160 oldal Borító 4 oldal | K190: 76200 | O190: 48300 | P190: 48300
F191: Belív 192 oldal Borító 4 oldal | K191: 81700 | O191: 57900 | P191: 57900
F192: Belív 216 oldal Borító 4 oldal | K192: 87700 | O192: 65100 | P192: 65100
F193: Belív 240 oldal Borító 4 oldal | K193: 93800 | O193: 72300 | P193: 72300
F194: Belív 272 oldal Borító 4 oldal | K194: 101600 | O194: 81900 | P194: 81900
F195: Belív 304 oldal Borító 4 oldal | K195: 108500 | O195: 91500 | P195: 91500
F196: 8 oldalankénti felár 400 oldalig | K196: 7000 | O196: 4800 | P196: 4800
C197: Borító 300 g/m2 műnyomó Belív 115 g/m2 műnyomó | E197: Borító 4+4 Belív 4+4 | F197: Belív 72 oldal Borító 4 oldal | K197: 86625 | O197: 21900 | P197: 21900
F198: Belív 96 oldal Borító 4 oldal | K198: 106200 | O198: 29100 | P198: 29100
F199: Belív 128 oldal Borító 4 oldal | K199: 133050 | O199: 38700 | P199: 38700
F200: Belív 160 oldal Borító 4 oldal | K200: 159150 | O200: 48300 | P200: 48300
F201: Belív 192 oldal Borító 4 oldal | K201: 186000 | O201: 57900 | P201: 57900
F202: Belív 216 oldal Borító 4 oldal | K202: 206325 | O202: 65100 | P202: 65100
F203: Belív 240 oldal Borító 4 oldal | K203: 226650 | O203: 72300 | P203: 72300
F204: Belív 272 oldal Borító 4 oldal | K204: 253500 | O204: 81900 | P204: 81900
F205: Belív 304 oldal Borító 4 oldal | K205: 280350 | O205: 91500 | P205: 91500
F206: 8 oldalankénti felár 400 oldalig | K206: 15000 | O206: 4800 | P206: 4800
C207: Borító 300 g/m2 műnyomó Belív 80 g/m2 ofszet | D207: VB/5 mérettől függetlenül | E207: Borító 4+4 Belív 1+1 (fekete) | F207: Belív 72 oldal Borító 4 oldal | K207: 70000 | O207: 43800 | P207: 43800
... 425 more rows

Sheet 2. részajánlati kör
A1: Keménytáblás kiadvány | B1: mennyiség (db) | C1: papírminőség | D1: méret | E1: szín | F1: terjedelem | G1: kötészet | I1: Nyomdai kivitelezés díja (nettó Ft/össz. db) | J1: Nyomdai előkészítés díja (nem nyomdai kompatibilis grafikai anyag esetén (nettó Ft) | K1: Egyszerű grafikai tervezés (borító + 1 oldalpár) pályázati arculat alapján 1 komplett tervvariáció díja (nettó Ft) | L1: Grafikai tervezés (borító + 1 oldalpár) egyéb arculat alapján 3 komplett tervvariáció díja (nettó Ft) | M1: Tördelés-szerkesztés egyszerű, 2 elektronikus korrektúraforduló lebonyolításával (nettó Ft/össz. oldal) | N1: Tördelés-szerkesztés összetett, 2 elektronikus korrektúraforduló lebonyolításával (nettó Ft/össz. oldal)
B2: 100 | C2: Borító 135 g/m2 műnyomó Belív 80 g/m2 ofszet Táblalemez 1400 g 2 mm-es Előzék 140 g/m2 ofszet | D2: Vágott B/5 (mérettől függetlenül) | E2: Borító 4+0 Belív 1+1 fekete Táblalemez 0+0 Előzék 0+0 | F2: 160 old. Belív + 4 old. Borító + 4 old. Táblalemez + 2*4 old. Előzék | G2: cérnafűzött, egyenes hát, borító fényes fóliázva
C3: Borító 135 g/m2 műnyomó Belív 135 g/m2 műnyomó Táblalemez 1400 g 2 mm-es Előzék 140 g/m2 ofszet | E3: Borító 4+0 Belív 4+4 Táblalemez 0+0 Előzék 4+0
B4: 300 | C4: Borító 135 g/m2 műnyomó Belív 80 g/m2 ofszet Táblalemez 1400 g 2 mm-es Előzék 140 g/m2 ofszet | D4: Vágott B/5 (mérettől függetlenül) | E4: Borító 4+0 Belív 1+1 fekete Táblalemez 0+0 Előzék 0+0 | F4: 160 old. Belív + 4 old. Borító + 4 old. Táblalemez + 2*4 old. Előzék
C5: Borító 135 g/m2 műnyomó Belív 135 g/m2 műnyomó Táblalemez 1400 g 2 mm-es Előzék 140 g/m2 ofszet | E5: Borító 4+0 Belív 4+4 Táblalemez 0+0 Előzék 4+0
I6: =SUM(I2:I5) -> 0 | J6: =SUM(J2) -> 0 | K6: =SUM(K2) -> 0 | L6: =SUM(L2) -> 0 | M6: =SUM(M2:M5) -> 0 | N6: =SUM(N2:N5) -> 0
A7: Kiadvány (1) | B7: mennyiség (db) | C7: papírminőség | D7: méret | E7: szín | F7: terjedelem | G7: kötészet | I7: Nyomdai kivitelezés díja (nettó Ft/össz. db) | J7: Nyomdai előkészítés díja (nem nyomdai kompatibilis grafikai anyag esetén (nettó Ft) | K7: Egyszerű grafikai tervezés (borító + 1 oldalpár) pályázati arculat alapján 1 komplett tervvariáció díja (nettó Ft) | L7: Grafikai tervezés (borító + 1 oldalpár) egyéb arculat alapján 3 komplett tervvariáció díja (nettó Ft) | M7: Tördelés-szerkesztés egyszerű, 2 elektronikus korrektúraforduló lebonyolításával (nettó Ft/össz. oldal) | N7: Tördelés-szerkesztés összetett, 2 elektronikus korrektúraforduló lebonyolításával (nettó Ft/össz. oldal)
B8: 300 | C8: 80 g/m2 ofszet | D8: A/4 | E8: 1+1 (fekete) | F8: 12 oldal | G8: irkafűzve
F9: 36 oldal
F10: 56 oldal
B11: 500 | C11: 80 g/m2 ofszet | D11: A/4 | E11: 1+1 (fekete) | F11: 12 oldal | G11: irkafűzve
F12: 36 oldal
F13: 56 oldal
I14: =SUM(I8:I13) -> 0 | J14: =SUM(J8) -> 0 | K14: =SUM(K8) -> 0 | L14: =SUM(L8) -> 0 | M14: =SUM(M8:M13) -> 0 | N14: =SUM(N8:N13) -> 0
A15: Kiadvány (2) | B15: mennyiség (db) | C15: papírminőség | D15: méret | E15: szín | F15: terjedelem | G15: kötészet | I15: Nyomdai kivitelezés díja (nettó Ft/össz. db) | J15: Nyomdai előkészítés díja (nem nyomdai kompatibilis grafikai anyag esetén (nettó Ft) | K15: Egyszerű grafikai tervezés (borító + 1 oldalpár) pályázati arculat alapján 1 komplett tervvariáció díja (nettó Ft) | L15: Grafikai tervezés (borító + 1 oldalpár) egyéb arculat alapján 3 komplett tervvariáció díja (nettó Ft) | M15: Tördelés-szerkesztés egyszerű, 2 elektronikus korrektúraforduló lebonyolításával (nettó Ft/össz. oldal) | N15: Tördelés-szerkesztés összetett, 2 elektronikus korrektúraforduló lebonyolításával (nettó Ft/össz. oldal)
B16: 300 | C16: 130 g/m2 műnyomó | D16: A4 | E16: 1+1 fekete | F16: 8 oldal | G16: irkafűzve
E17: 4+4
B18: 500 | C18: 130 g/m2 műnyomó | D18: A4 | E18: 1+1 fekete | F18: 8 oldal | G18: irkafűzve
E19: 4+4
B20: 1000 | C20: 130 g/m2 műnyomó | D20: A4 | E20: 1+1 fekete | F20: 8 oldal | G20: irkafűzve
E21: 4+4
I22: =SUM(I16:I21) -> 0 | J22: =SUM(J16) -> 0 | K22: =SUM(K16) -> 0 | L22: =SUM(L16) -> 0 | M22: =SUM(M16:M21) -> 0 | N22: =SUM(N16:N21) -> 0
B23: mennyiség (db) | C23: papírminőség | D23: méret | E23: szín | F23: terjedelem | G23: konfekcionálás | H23: kötészet | I23: Nyomdai kivitelezés díja (nettó Ft/össz. db) | J23: Nyomdai előkészítés díja (nem nyomdai kompatibilis grafikai anyag esetén (nettó Ft) | K23: Egyszerű grafikai tervezés (borító + 1 oldalpár) pályázati arculat alapján 1 komplett tervvariáció díja (nettó Ft) | L23: Grafikai tervezés (borító + 1 oldalpár) egyéb arculat alapján 3 komplett tervvariáció díja (nettó Ft) | M23: Tördelés-szerkesztés egyszerű, 2 elektronikus korrektúraforduló lebonyolításával (nettó Ft/össz. oldal) | N23: Tördelés-szerkesztés összetett, 2 elektronikus korrektúraforduló lebonyolításával (nettó Ft/össz. oldal)
A24: Kiadvány(3) | B24: 100 | C24: Borító 300 g/m2 műnyomó Belív 80 g/m2 ofszet | D24: A/4 | E24: Borító 4+4 Belív 1+1 fekete | F24: 52 oldal belív + 4 oldal borító | G24: - | H24: irkafűzve
G25: borító fóliázva | H25: irkafűzve
G26: borító fóliázva + UV lakk egy oldalon | H26: irkafűzve
F27: 156 oldal belív + 4 oldal borító | G27: - | H27: ragasztókötés
G28: borító fóliázva | H28: ragasztókötés
G29: borító fóliázva + UV lakk egy oldalon | H29: ragasztókötés
D30: A/4 | E30: Borító 4+4 Belív 4+4 | F30: 52 oldal belív + 4 oldal borító | G30: - | H30: irkafűzve
G31: borító fóliázva | H31: irkafűzve
G32: borító fóliázva + UV lakk egy oldalon | H32: irkafűzve
F33: 156 oldal belív + 4 oldal borító | G33: - | H33: ragasztókötés
G34: borító fóliázva | H34: ragasztókötés
G35: borító fóliázva + UV lakk egy oldalon | H35: ragasztókötés
D36: A/5 | E36: Borító 4+4 Belív 1+1 fekete | F36: 52 oldal belív + 4 oldal borító | G36: - | H36: irkafűzve
G37: borító fóliázva | H37: irkafűzve
G38: borító fóliázva + UV lakk egy oldalon | H38: irkafűzve
F39: 156 oldal belív + 4 oldal borító | G39: - | H39: ragasztókötés
G40: borító fóliázva | H40: ragasztókötés
G41: borító fóliázva + UV lakk egy oldalon | H41: ragasztókötés
D42: A/5 | E42: Borító 4+4 Belív 4+4 | F42: 52 oldal belív + 4 oldal borító | G42: - | H42: irkafűzve
G43: borító fóliázva | H43: irkafűzve
G44: borító fóliázva + UV lakk egy oldalon | H44: irkafűzve
F45: 156 oldal belív + 4 oldal borító | G45: - | H45: ragasztókötés
G46: borító fóliázva | H46: ragasztókötés
G47: borító fóliázva + UV lakk egy oldalon | H47: ragasztókötés
B48: 300 | C48: Borító 300 g/m2 műnyomó Belív 80 g/m2 ofszet | D48: A/4 | E48: Borító 4+4 Belív 1+1 fekete | F48: 52 oldal belív + 4 oldal borító | G48: - | H48: irkafűzve
G49: borító fóliázva | H49: irkafűzve
G50: borító fóliázva + UV lakk egy oldalon | H50: irkafűzve
F51: 156 oldal belív + 4 oldal borító | G51: - | H51: ragasztókötés
G52: borító fóliázva | H52: ragasztókötés
G53: borító fóliázva + UV lakk egy oldalon | H53: ragasztókötés
D54: A/4 | E54: Borító 4+4 Belív 4+4 | F54: 52 oldal belív + 4 oldal borító | G54: - | H54: irkafűzve
G55: borító fóliázva | H55: irkafűzve
G56: borító fóliázva + UV lakk egy oldalon | H56: irkafűzve
F57: 156 oldal belív + 4 oldal borító | G57: - | H57: ragasztókötés
G58: borító fóliázva | H58: ragasztókötés
G59: borító fóliázva + UV lakk egy oldalon | H59: ragasztókötés
D60: A/5 | E60: Borító 4+4 Belív 1+1 fekete | F60: 52 oldal belív + 4 oldal borító | G60: - | H60: irkafűzve
G61: borító fóliázva | H61: irkafűzve
G62: borító fóliázva + UV lakk egy oldalon | H62: irkafűzve
F63: 156 oldal belív + 4 oldal borító | G63: - | H63: ragasztókötés
G64: borító fóliázva | H64: ragasztókötés
G65: borító fóliázva + UV lakk egy oldalon | H65: ragasztókötés
D66: A/5 | E66: Borító 4+4 Belív 4+4 | F66: 52 oldal belív + 4 oldal borító | G66: - | H66: irkafűzve
G67: borító fóliázva | H67: irkafűzve
G68: borító fóliázva + UV lakk egy oldalon | H68: irkafűzve
F69: 156 oldal belív + 4 oldal borító | G69: - | H69: ragasztókötés
G70: borító fóliázva | H70: ragasztókötés
G71: borító fóliázva + UV lakk egy oldalon | H71: ragasztókötés
I72: =SUM(I24:I71) -> 0 | J72: =SUM(J24) -> 0 | K72: =SUM(K24) -> 0 | L72: =SUM(L24) -> 0 | M72: =SUM(M24:M71) -> 0 | N72: =SUM(N24:N71) -> 0
B73: mennyiség (db) | C73: papírminőség | D73: méret | E73: szín | F73: terjedelem | G73: kötészet | I73: Nyomdai kivitelezés díja (nettó Ft/össz. db) | J73: Nyomdai előkészítés díja (nem nyomdai kompatibilis grafikai anyag esetén (nettó Ft) | K73: Egyszerű grafikai tervezés (borító + 1 oldalpár) pályázati arculat alapján 1 komplett tervvariáció díja (nettó Ft) | L73: Grafikai tervezés (borító + 1 oldalpár) egyéb arculat alapján 3 komplett tervvariáció díja (nettó Ft) | M73: Tördelés-szerkesztés egyszerű, 2 elektronikus korrektúraforduló lebonyolításával (nettó Ft/össz. oldal) | N73: Tördelés-szerkesztés összetett, 2 elektronikus korrektúraforduló lebonyolításával (nettó Ft/össz. oldal)
A74: Kiadvány(4) | B74: 300 | C74: Borító 250 g/m2 cyclus ofszet belív 80g/m2 cyclus ofszet | D74: A5 | E74: 4+4 | F74: 20 oldal belív + 4 oldal borító | G74: irkafűzött
E75: 4+4 | F75: 28 oldal belív + 4 oldal borító
E76: 4+4 | F76: 36 oldal belív + 4 oldal borító
E77: 4+4 | F77: 44 oldal belív + 4 oldal borító
E78: 4+4 | F78: 52 oldal belív + 4 oldal borító
B79: 500 | C79: Borító 250 g/m2 cyclus ofszet belív 80g/m2 cyclus ofszet | D79: A5 | E79: 4+4 | F79: 20 oldal belív + 4 oldal borító
E80: 4+4 | F80: 28 oldal belív + 4 oldal borító
E81: 4+4 | F81: 36 oldal belív + 4 oldal borító
E82: 4+4 | F82: 44 oldal belív + 4 oldal borító
E83: 4+4 | F83: 52 oldal belív + 4 oldal borító
I84: =SUM(I74:I83) -> 0 | J84: =SUM(J74) -> 0 | K84: =SUM(K74) -> 0 | L84: =SUM(L74) -> 0 | M84: =SUM(M74:M83) -> 0 | N84: =SUM(N74:N83) -> 0
B85: mennyiség (db) | C85: papírminőség | D85: méret | E85: szín | F85: terjedelem | G85: konfekcionálás | H85: kötészet | I85: Nyomdai kivitelezés díja (nettó Ft/össz. db) | J85: Nyomdai előkészítés díja (nem nyomdai kompatibilis grafikai anyag esetén (nettó Ft) | K85: Egyszerű grafikai tervezés (borító + 1 oldalpár) pályázati arculat alapján 1 komplett tervvariáció díja (nettó Ft) | L85: Grafikai tervezés (borító + 1 oldalpár) egyéb arculat alapján 3 komplett tervvariáció díja (nettó Ft) | M85: Tördelés-szerkesztés egyszerű, 2 elektronikus korrektúraforduló lebonyolításával (nettó Ft/össz. oldal) | N85: Tördelés-szerkesztés összetett, 2 elektronikus korrektúraforduló lebonyolításával (nettó Ft/össz. oldal)
A86: Kiadvány(5) | B86: 300 | C86: Borító300 g/m2 műnyomó Belív 130 g/m2 műnyomó | D86: Vágott B5 (pontos mérettől függetlenül) | E86: Borító 4+4 Belív 1+1 (fekete) | F86: Belív 12 oldal Borító 4 oldal | G86: Borító matt fóliázva | H86: irkafűzött
F87: Belív 20 oldal Borító 4 oldal
F88: Belív 28 oldal Borító 4 oldal
F89: Belív 36 oldal Borító 4 oldal
E90: Borító 4+4 Belív 4+4 | F90: Belív 12 oldal Borító 4 oldal
F91: Belív 16 oldal Borító 4 oldal
F92: Belív 20 oldal Borító 4 oldal
F93: Belív 24 oldal Borító 4 oldal
F94: Belív 28 oldal Borító 4 oldal
F95: Belív 32 oldal Borító 4 oldal
F96: Belív 36 oldal Borító 4 oldal
I97: =SUM(I86:I96) -> 0 | J97: =SUM(J86) -> 0 | K97: =SUM(K86) -> 0 | L97: =SUM(L86) -> 0 | M97: =SUM(M86:M96) -> 0 | N97: =SUM(N86:N96) -> 0
B98: mennyiség (db) | C98: papírminőség | D98: méret | E98: szín | F98: terjedelem | G98: kötészet | I98: Nyomdai kivitelezés díja (nettó Ft/össz. db) | J98: Nyomdai előkészítés díja (ppt vagy egyéb nem nyomdai kompatibilis grafikai anyag esetén (nettó Ft) | K98: Egyszerű gafikai tervezés, szerkesztés díja (1 komplett tervvariáció) (nettó Ft)
A99: Jegyzettömb | B99: 100 | C99: 80 g/m2 ofszet | D99: A4 | E99: 2+0 | F99: 10 lap | G99: enyvezve
F100: 20 lap | G100: enyvezve
F101: 50 lap | G101: enyvezve
E102: 4+0 | F102: 10 lap | G102: enyvezve
F103: 20 lap | G103: enyvezve
F104: 50 lap | G104: enyvezve
D105: A5 | E105: 2+0 | F105: 10 lap | G105: enyvezve
F106: 20 lap | G106: enyvezve
F107: 50 lap | G107: enyvezve
E108: 4+0 | F108: 10 lap | G108: enyvezve
F109: 20 lap | G109: enyvezve
F110: 50 lap | G110: enyvezve
I111: =SUM(I99:I110) -> 0 | J111: =SUM(J99) -> 0 | K111: =SUM(K99) -> 0
A112: Meghívó | B112: mennyiség (db) | C112: papírminőség | D112: méret | E112: szín | F112: konfekcionálás | G112: kötészet | I112: Nyomdai kivitelezés díja (nettó Ft/össz. db) | J112: Nyomdai előkészítés díja (ppt vagy egyéb nem nyomdai kompatibilis grafikai anyag esetén (nettó Ft) | K112: Egyszerű gafikai tervezés, szerkesztés díja (1 komplett tervvariáció) (nettó Ft)
B113: 100 | C113: 300 g/m2 műnyomó | D113: A5 | E113: 4+4 | F113: matt fólia 2 oldalon | G113: biegelve, hajtva
I114: =SUM(I113) -> 0 | J114: =SUM(J113) -> 0 | K114: =SUM(K113) -> 0
A115: Mappa | B115: mennyiség (db) | C115: papírminőség | D115: méret | E115: szín | F115: konfekcionálás | G115: kötészet | I115: Nyomdai kivitelezés díja (nettó Ft/össz. db) | J115: Nyomdai előkészítés díja (ppt vagy egyéb nem nyomdai kompatibilis grafikai anyag esetén (nettó Ft) | K115: Egyszerű gafikai tervezés, szerkesztés díja (pályázati arculat alapján 1 komplett tervvariáció) (nettó Ft) | L115: Grafikai tervezés, szerkesztés díja (egyéb arculat alapján 3 komplett tervvariáció) (nettó Ft)
B116: 100 | C116: 350 g műnyomó | D116: A4 kiadványt befogadó kiterített méret 45 cm széles, 31 cm magas, alsó lehajtható rész 6 cm, 5 mm-es gerinccel, alul-felül stancolt füllel stancolt névjegytartóval, vagy a megadott mérethez hasonló méret +-1 cm eltéréssel. A stancformát a cégnek kell biztosítani | E116: 4+0 | F116: fóliázva matt fóliával | G116: A mappákat kiterített állapotban kérjük szállítani.
I117: =SUM(I116) -> 0 | J117: =SUM(J116) -> 0 | K117: =SUM(K116) -> 0 | L117: =SUM(L116) -> 0
A118: Leporelló | B118: mennyiség (db) | C118: papírminőség | D118: méret | E118: szín | F118: kötészet | I118: Nyomdai kivitelezés díja (nettó Ft/össz. db) | J118: Nyomdai előkészítés díja (ppt vagy egyéb nem nyomdai kompatibilis grafikai anyag esetén (nettó Ft) | K118: Egyszerű gafikai tervezés, szerkesztés díja (pályázati arculat alapján 1 komplett tervvariáció) (nettó Ft) | L118: Grafikai tervezés, szerkesztés díja (egyéb arculat alapján 3 komplett tervvariáció) (nettó Ft)
B119: 50 | C119: 130 g műnyomó | D119: A4 kétoldalas | E119: 4+4 | F119: kétszer hajtva
I120: =SUM(I119) -> 0 | J120: =SUM(J119) -> 0 | K120: =SUM(K119) -> 0 | L120: =SUM(L119) -> 0
A121: Papírtáska | B121: mennyiség (db) | C121: papírminőség | D121: méret | E121: szín | F121: konfekcionálás | G121: fül | I121: Nyomdai kivitelezés díja (nettó Ft/össz.db) | J121: Nyomdai előkészítés díja (ppt vagy egyéb nem nyomdai kompatibilis grafikai anyag esetén (nettó Ft) | K121: Egyszerű gafikai tervezés, szerkesztés díja (pályázati arculat alapján 1 komplett tervvariáció) (nettó Ft) | L121: Gafikai tervezés, szerkesztés díja (egyéb arculat alapján 3 komplett tervvariáció) (nettó Ft)
B122: 50 | C122: 170 g/m2 műnyomó | D122: 250*340*110 mm | E122: 4+0 | F122: egy oldal fényes fólia, stancolva, beigelve, összeállítva | G122: stenderd zsinórfüllel
I123: =SUM(I122) -> 0 | J123: =SUM(J122) -> 0 | K123: =SUM(K122) -> 0 | L123: =SUM(L122) -> 0
F131: Oszlopok mindösszesen: | I131: =SUM(I123,I120,I117,I114,I111,I97,I84,I72,I22,I14,I6) -> 0 | J131: =SUM(J123,J120,J117,J114,J111,J97,J84,J72,J22,J14,J6) -> 0 | K131: =SUM(K123,K120,K117,K114,K111,K97,K84,K72,K22,K14,K6) -> 0 | L131: =SUM(L123,L120,L117,L97,L84,L72,L22,L14, L6) -> 0 | M131: =SUM(M97,M84,M72,M22,M14,M6) -> 0 | N131: =SUM(N97,N84,N72,N22,N14,N6) -> 0
F132: Összehasonlítás érdekében kalkulált nettó ajánlati ár (I+J+K+L+M+N): | J132: =SUM(I131,J131,K131,L131,M131,N131) -> 0
A134: Minden nyomdai termék esetében a forrás anyag, a monitor optimalizált pdf, és a nyomdakész pdf a Megrendelő tulajdonát képezi, a hozzá kapcsolódó szerzői jogokkal együtt.
A135: Teljesítésigazolás kiállításának a feltétele a Megrendelő részéről: A legyártott mennyiségnek és minőségnek, valamint határidőnek való megfelelés. A gyártott nyomdai termékek forrás anyagának/a monitor optimalizált pdf/nyomdakész pdf átadása fizikai adathordozón.
